{"text_format":"1","workbook":"xlsx","n_sheets":14,"sheets":["CAPA","Analise mercado","Estr. Intern.","Postos Trabalho","VENDAS EXTERIOR","CRITERIOS_SELECAO_AUTOVAL","Financiamento","Balanço empresa ","Balanço da empresa pós Proj","D. Resultados empresa","D. Result da empresa pós Proj","Balanço do Projeto","D. Resultados do Projeto","Folha2"],"not_rendered":{"charts":0,"images":24,"macros":0,"external_links":1,"defined_names":49,"comments":0,"pivot_tables":0},"unopened":[],"bounds":{"document_bytes":16777216,"sheet_cells":100000,"rows_first":2000,"rows_last":500,"rows_between":2000,"halvings":0,"cell_chars":16384,"cell_head_chars":4096},"cells_cut":0,"cells_raw":0,"read":"row_number_cap","date_system":"1900"}

{"sheet":"CAPA","index":0,"n_rows":16,"n_cols":17,"rows_kept":16,"cut":false,"hidden":false,"merged":[[8,2,8,17],[11,2,11,5],[15,16,15,17]]}
[null,"V_3_06_02_2019_15_33"]
[]
[]
[]
[]
[]
[null,null,"BENEFICIÁRIO:"]
[]
[]
[]
[null,null,"NIF:"]
[]
[]
[null,null,"SISTEMA DE INCENTIVOS:"]
[]
[null,null,"INTERNACIONALIZAR 2020 II",null,null,null,null,null,null,null,null,null,null,null,null,null,"Portaria 29/2018, de 14 de fevereiro"]

{"sheet":"Analise mercado","index":1,"n_rows":122,"n_cols":13,"rows_kept":122,"cut":false,"hidden":false,"merged":[[120,4,120,15],[92,3,100,4],[92,7,92,10],[69,7,69,10],[113,7,115,7],[106,7,107,7],[83,7,83,10],[113,3,115,4],[103,3,103,15],[109,3,111,4],[109,7,111,7],[109,9,111,9],[113,9,115,9],[69,12,69,15],[60,12,60,15],[81,12,81,15],[92,12,92,15],[106,9,107,9],[4,2,4,16],[11,2,11,16],[7,2,7,5],[83,12,83,15],[14,2,14,16],[58,7,58,10],[58,12,58,15],[19,3,19,15],[26,4,26,15],[79,3,79,15],[69,3,77,4],[60,7,60,10],[83,3,90,4],[81,7,81,10],[60,3,67,4]],"read":"row_number_cap"}
[]
[]
[null,null,"BENEFICIÁRIO:"]
[]
[null,null,{"$f":"+CAPA!C9","v":0}]
[]
[null,null,"NIF:"]
[null,null,{"$f":"+CAPA!C12","v":0}]
[]
[null,null,"SISTEMA DE INCENTIVOS:"]
[]
[null,null,{"$f":"+CAPA!C16","v":"INTERNACIONALIZAR 2020 II"}]
[]
[]
[null,null,"ANÁLISE DO MERCADO"]
[]
[null,null,"  "]
[]
[null,null,null,"Análise do Mercado "]
[null,null,null," - Nesta secção pretende-se a identificação da abrangência comercial da empresa e qual o impacto dos seus produtos no mercado, bem como a descrição de como respondem às necessidades dos seus clientes."]
[null,null,null,"Breve Descrição do Mercado"]
[null,null,null,"-","Quem são e onde estão os atuais clientes da empresa e quem serão e onde estarão no horizonte temporal do projeto? "]
[null,null,null,"-","Que necessidades dos clientes satisfazem os produtos da empresa? Que benefícios procura o consumidor? E que necessidades / benefícios pretendem satisfazer no futuro? "]
[null,null,null,"-","Com que tecnologias satisfazem essas necessidades? Vão passar a utilizar outras? Perspetiva-se alterações de tecnologia? Quais?"]
[null,null,null,"-","Através de que canais de distribuição vendem os produtos/serviços? O que pretendem fazer no futuro sobre os canais de distribuição? "]
[null,null,null,"-","Que fatores influenciam a procura (motivações de compra)? Que tipo de consumidor compra os produtos da concorrência? "]
[null,null,null,"-","Qual a segmentação que faz do mercado? Qual parcela do mercado a sua empresa visa atingir? Com base em que critérios é feita essa divisão do mercado potencial? Como é que esses segmentos são quantificados? "]
[null,null,null,"-","Qual a dimensão atual e potencial do mercado? "]
[]
[]
[]
[]
[]
[]
[]
[]
[]
[]
[]
[]
[null,null,null,"Análise da Concorrência "]
[null,null,null," - Esta seção visa dar a noção da dimensão concorrencial da empresa beneficiária, bem como a sua capacidade de adaptação perante os desafios do mercado. "]
[null,null,null," - ","Identificação os seus concorrentes diretos, que têm como alvos os mesmos segmentos de mercado da sua empresa. "]
[null,null,null," - ","Identificação das áreas de competitividade críticas para o negócio em que a empresa se insere."]
[]
[]
[]
[]
[]
[]
[]
[]
[]
[]
[]
[]
[null,null,null,"Análise SWOT"]
[null,null,null," - Aqui deve inserir nos campos respetivos (Fatores Internos e Externos, Pontos Fracos, Pontos Fortes, Oportunidade e Ameaças) todos os elementos resumo que resultam da sua análise SWOT."]
[]
[]
[null,null,null,"FATORES\nINTERNOS",null,null,null,"PONTOS FORTES",null,null,null,null,"PONTOS FRACOS"]
[]
[]
[]
[]
[]
[]
[]
[]
[null,null,null,"FATORES\nEXTERNOS",null,null,null,"OPORTUNIDADES",null,null,null,null,"AMEAÇAS"]
[]
[]
[]
[]
[]
[]
[]
[]
[]
[null,null,null," - Para além da síntese da análise SWOT indicada no quadro anterior, deve ainda desenvolver uma análise qualificada/dinâmica baseada na referida análise SWOT, identificando: Riscos, Avisos, Desafios/Apostas e Restrições."]
[]
[null,null,null,null,null,null,null,"Oportunidades",null,null,null,null,"Ameaças"]
[]
[null,null,null,"Pontos\nFortes",null,null,null,"Apostas",null,null,null,null,"Avisos"]
[]
[]
[]
[]
[]
[]
[]
[]
[null,null,null,"Pontos\nFracos",null,null,null,"Restrições",null,null,null,null,"Riscos"]
[]
[]
[]
[]
[]
[]
[]
[]
[]
[null,null,null,"Qual a direção de crescimento do mercado"]
[null,null,null," - Neste quadro pretende-se ter a identificação da forma como o beneficiário pretende orientar a sua atividade futura nos mercados, selecionando apenas uma das seguintes opções (cujos conceitos subjacentes se encontram explicados na caixa)."]
[null,null,null," - Justifique a sua direção de crescimento no mercado."]
[]
[null,null,null,null,null,null,null,"PRODUTOS\nATUAIS",null,"PRODUTOS\nNOVOS"]
[]
[]
[null,null,null,"MERCADOS\nATUAIS",null,null,null,"Penetração",null,"Extensão \ndo Produto"]
[]
[]
[]
[null,null,null,"MERCADOS\nNOVOS",null,null,null,"Extensão \ndo Mercado",null,"Diversificação"]
[]
[]
[]
[null,null,null," - Tanto no quadro “Qual a duração de crescimentos no mercado” como na justificação posterior o beneficiário deverá ter em consideração os seguintes conceitos: "]
[null,null,null," -","Penetração - Aumento das quotas de mercado com os produtos atuais e nos mercados atuais; "]
[null,null,null," -","Extensão do produto - aumento da gama e/ou criação de novos produtos, mantendo os mercados atuais; "]
[null,null,null," -","Extensão do mercado - entrada em novos mercados (e.g. entrada ou alargamento do mercado de exportação ou cobertura de mais segmentos no mercado nacional), com os mesmos produtos; "]
[null,null,null," -","Diversificação - lançamento de novos produtos e, em simultâneo, entrada em novos mercados."]

{"sheet":"Estr. Intern.","index":2,"n_rows":58,"n_cols":4,"rows_kept":58,"cut":false,"hidden":false,"merged":[[57,3,57,13],[7,2,7,5],[14,2,14,14],[53,3,53,13],[4,2,4,14],[11,2,11,14],[54,3,54,13],[55,3,55,13],[56,3,56,13]]}
[]
[]
[null,null,"BENEFICIÁRIO:"]
[]
[null,null,{"$f":"+CAPA!C9","v":0}]
[]
[null,null,"NIF:"]
[null,null,{"$f":"+CAPA!C12","v":0}]
[]
[null,null,"SISTEMA DE INCENTIVOS:"]
[]
[null,null,{"$f":"+CAPA!C16","v":"INTERNACIONALIZAR 2020 II"}]
[]
[]
[null,null,"ESTRATÉGIA DE INTERNACIONALIZAÇÃO"]
[]
[null,null,"  "]
[]
[null,null,null,"Fundamentação do enquadramento do projeto nas tipologias de projeto selecionadas (de acordo com o artigo 7º da Portaria do Internacionalizar 2020)"]
[null,null,null,"a) O conhecimento de mercados externos;"]
[null,null,null,"b) A presença na web, através da economia digital, incluindo designadamente o lançamento de catálogos virtuais de bens e serviços;"]
[null,null,null,"c) O desenvolvimento e promoção internacional de marcas;"]
[null,null,null,"d) A prospeção e presença em mercados internacionais;"]
[null,null,null,"e) O marketing internacional;"]
[null,null,null,"f) A introdução de novo método de organização nas práticas comerciais ou nas relações externas;"]
[null,null,null,"g) As certificações específicas para os mercados externos."]
[]
[]
[]
[]
[]
[]
[]
[]
[]
[]
[]
[]
[null,null,null,"Fundamentação da Inovação Organizacional para efeitos da aliena a) do artigo 14º da Portaria do Internacionalizar 2020"]
[]
[]
[]
[]
[]
[]
[]
[]
[]
[]
[]
[]
[null,null,null,"Estratégia de Internacionalização"]
[null,null,null,"  - Descrição do plano de internacionalização;"]
[null,null,null,"  - Associação de objetivos de venda e de captação de novos clientes a cada mercado;"]
[null,null,null,"  - Justificação dos mercados selecionados;"]
[null,null,null,"  - Descrição dos modelos associados ao processo de internacionalização;"]
[null,null,null,"  - Presença internacional concentrada ou diversificada;"]
[null,null,null,"  - Criação de valor pela via da internacionalização."]

{"sheet":"Postos Trabalho","index":3,"n_rows":71,"n_cols":29,"rows_kept":71,"cut":false,"hidden":false,"merged":[[42,3,42,4],[42,10,42,11],[4,2,4,29],[11,2,11,29],[68,3,68,4],[67,3,67,18],[20,14,20,15],[20,16,20,17],[20,18,20,19],[43,3,43,4],[65,3,66,27],[33,9,35,21],[34,3,35,4],[34,5,35,6],[40,3,41,4],[40,5,40,6],[40,10,41,11],[40,12,40,13],[7,2,7,3],[14,2,14,27],[20,3,21,3],[20,4,20,5],[20,6,20,7],[20,8,20,9],[20,10,20,11],[20,12,20,13],[20,22,20,23],[20,24,20,25],[20,26,20,27],[20,20,20,21],[31,3,31,4],[31,14,31,15],[32,3,32,4],[32,14,32,15],[33,3,33,4],[33,5,33,6],[22,28,22,29],[23,28,23,29],[26,3,26,29],[29,3,30,4],[29,5,29,6],[29,8,29,9],[29,10,29,11],[29,14,30,15],[29,16,29,17]]}
[]
[]
[null,null,"BENEFICIÁRIO:"]
[]
[null,null,{"$f":"+CAPA!C9","v":0}]
[]
[null,null,"NIF:"]
[null,null,{"$f":"+CAPA!C12","v":0}]
[]
[null,null,"SISTEMA DE INCENTIVOS:"]
[]
[null,null,{"$f":"+CAPA!C16","v":"INTERNACIONALIZAR 2020 II"}]
[]
[]
[null,null,"POSTOS DE TRABALHO"]
[]
[null,null,"  "]
[]
[null,null,null,"Postos de trabalho existentes no ano anterior à data da candidatura"]
[]
[null,null,null,"Postos de trabalho","Jan/n-1",null,"Fev/n-1",null,"Mar/n-1",null,"Abr/n-1",null,"Mai/n-1",null,"Jun/n-1",null,"Jul/n-1",null,"Ago/n-1",null,"Set/n-1",null,"Out/n-1",null,"Nov/n-1",null,"Dez/n-1"]
[null,null,null,null,"H","M","H","M","H","M","H","M","H","M","H","M","H","M","H","M","H","M","H","M","H","M","H","M"]
[null,null,null,"Não qualificado",null,null,null,null,null,null,null,null,null,null,null,null,null,null,null,null,null,null,null,null,null,null,null,null,"(inserir)"]
[null,null,null,"Qualificado*",null,null,null,null,null,null,null,null,null,null,null,null,null,null,null,null,null,null,null,null,null,null,null,null,"(inserir)"]
[null,null,null,"* Nivel de qualificação igual ou superior ao Nível VI"]
[]
[null,null,null,"Nota: O beneficiário deverá escolher os meses do ano pré-candidatura (n-1) a preencher no quadro acima com o volume de postos de trabalho em cada mês, para efeitos de apuramento da «Criação líquida de postos de trabalho» conforme o definido na alínea e) do Anexo A da Portaria vigente."]
[]
[]
[null,null,null,"Postos de trabalho",null,"Total"]
[null,null,null,null,null,"H","M"]
[null,null,null,"Não qualificado",null,{"$f":"E23+G23+I23+K23+M23+O23+Q23+S23+U23+W23+Y23+AA23","v":0},{"$f":"F23+H23+J23+L23+N23+P23+R23+T23+V23+X23+Z23+AB23","v":0}]
[null,null,null,"Qualificado*",null,{"$f":"E24+G24+I24+K24+M24+O24+Q24+S24+U24+W24+Y24+AA24","v":0},{"$f":"F24+H24+J24+L24+N24+P24+R24+T24+V24+X24+Z24+AB24","v":0}]
[null,null,null,"Nº meses",null,null,null,"(inserir)",null,"Deverá inserir o número de meses selecionados para efeitos de cálculo da média mensal no ano pré-projeto, com o limite máximo de 12 meses."]
[null,null,null,"Média Postos de trabalho",null,{"$f":"IF(ISERROR((F32+G32+F33+G33)/F34),\"\",(F32+G32+F33+G33)/F34)","v":""}]
[]
[]
[]
[null,null,null,"Postos de trabalho a criar com o projeto"]
[]
[null,null,null,"Postos de trabalho",null,"Total",null,null,null,null,"Postos de trabalho",null,"Total"]
[null,null,null,null,null,"H","M",null,null,null,null,null,"H","M"]
[null,null,null,"Não qualificado",null,null,null,"(inserir)",null,null,"Jovem",null,null,null,"(inserir)"]
[null,null,null,"Qualificado*",null,null,null,"(inserir)"]
[]
[]
[null,null,null,"Fundamentação "]
[null,null,null,"Se os meios humanos são adequados ao desenvolvimento do projeto."]
[null,null,null,"Qual a formação dos postos de trabalho e se a mesma é adequada ao desenvolvimento do projeto de internacionalização"]
[]
[]
[]
[]
[]
[]
[]
[]
[]
[]
[]
[]
[]
[]
[]
[null,null,null,"Notas:"]
[null,null,null,"«Criação líquida de postos de trabalho», consiste no aumento líquido do nnúmero de trabalhadores diretamente empregados na empresa, calculado e validado pela diferença entre o número de postos de trabalho existentes no mês anterior à data de apresentação do pedido de pagamento final e a média mensal durante um determinado período de tempo nos meses pré-projeto, com o limite máximo de 12 meses."]
[]
[null,null,null,"Nos termos da Portaria n.º 782/2009 de 23 de julho, os níveis de qualificação de emprego a considerar são:"]
[null,null,null,"• Nível 6 - Licenciatura"]
[null,null,null,"• Nível 7 - Mestrado"]
[null,null,null,"• Nível 8 - Doutoramento"]

{"sheet":"VENDAS EXTERIOR","index":4,"n_rows":92,"n_cols":12,"rows_kept":92,"cut":false,"hidden":false,"merged":[[7,2,7,3],[14,2,14,12],[20,3,21,3],[11,2,11,12],[4,2,4,12],[90,3,90,6],[20,4,21,4],[20,5,21,5],[20,6,20,7],[20,8,20,9],[88,3,88,11],[55,3,57,3],[55,4,57,4],[55,5,55,7],[55,8,55,11],[56,5,57,5],[56,6,56,7],[56,8,57,8],[56,9,56,11]],"read":"row_number_cap"}
[]
[]
[null,null,"BENEFICIÁRIO:"]
[]
[null,null,{"$f":"+Financiamento!C5","v":0}]
[]
[null,null,"NIF:"]
[null,null,{"$f":"+Financiamento!C8","v":0}]
[]
[null,null,"SISTEMA DE INCENTIVOS:"]
[]
[null,null,{"$f":"+Financiamento!C12","v":"INTERNACIONALIZAR 2020 II"}]
[]
[]
[null,null,"ATIVIDADE ECONÓMICA / VENDAS AO EXTERIOR"]
[]
[null,null,"  "]
[]
[null,null,null,"Atividade económica por mercado"]
[]
[null,null,null,"Tipo","Bem/Serviço","Mercado (país)","Ano Pré-Proj",null,"Ano Fim Proj +1"]
[null,null,null,null,null,null,"Quantidade","Valor","Quantidade","Valor"]
[]
[]
[]
[]
[]
[]
[]
[]
[]
[]
[]
[]
[]
[null,null,null,"Fundamentação e caraterização da atividade económica por mercado "]
[null,null,null," - Qual o histórico da empresa em matéria de internacionalização?"]
[null,null,null," - Qual é a estratégia de internacionalização?"]
[null,null,null," - A presença internacional é concentrada em que mercados?"]
[null,null,null," - Justifique os mercados selecionados."]
[]
[]
[]
[]
[]
[]
[]
[]
[]
[]
[]
[]
[]
[]
[null,null,null,"Vendas ao Exterior Indiretas"]
[null,null,null,"NIF","Designação do cliente Exportador","Ano Pré-Projeto",null,null,"Ano Fim Projeto + 1"]
[null,null,null,null,null,"Vendas do Beneficiário ao Cliente","Volume de Negócios do Cliente",null,"Vendas do Beneficiário ao Cliente","Volume de Negócios do Cliente"]
[null,null,null,null,null,null,"Internacional","Total",null,"Internacional",null,"Total"]
[]
[]
[]
[]
[]
[]
[]
[]
[]
[]
[]
[]
[]
[]
[null,null,null,"Fundamentação e caraterização das Vendas ao Exterior Indiretas"]
[]
[]
[]
[]
[]
[]
[]
[]
[]
[]
[]
[]
[]
[]
[]
[null,null,null,"Os projetos a cofinanciar devem demonstrar a sua orientação para as realizações e resultados do Programa Operacional Madeira 14-20, de forma a contribuir para o indicador de resultado \"valor das exportações no volume de negócios das PME\":"]
[]
[null,null,null,"ExpVN = Valor total das exportações / Volume de Negócios da Empresa",null,null,null,{"$f":"+IF(ISERROR(+(K91/K92)*100),\"\",(((K91/K92)*100)))","v":""},null,"Total das exportações",null,"(inserir)"]
[null,null,null,null,null,null,null,null,null,"Volume de Negócios da Empresa",null,"(inserir)"]

{"sheet":"CRITERIOS_SELECAO_AUTOVAL","index":5,"n_rows":172,"n_cols":12,"rows_kept":172,"cut":false,"hidden":false,"merged":[[3,2,3,12],[10,2,10,12],[6,2,6,5],[72,3,72,4],[20,3,20,9],[19,3,19,9],[18,3,18,9],[12,2,12,12],[41,3,41,8],[42,3,42,8],[43,3,43,8],[44,3,44,8],[23,3,23,9],[161,3,162,9],[137,3,137,4],[102,3,102,9],[106,3,106,4],[108,3,108,4],[135,3,135,4],[111,3,111,8],[81,3,81,8],[45,3,45,8],[99,3,99,9],[47,3,47,8],[157,3,159,9],[48,3,48,8],[49,3,49,8],[51,3,51,8],[76,3,76,4],[46,3,46,8],[79,3,79,4],[97,3,97,9]],"read":"row_number_cap"}
[]
[null,null,"BENEFICIÁRIO:"]
[]
[null,null,{"$f":"+CAPA!C9","v":0}]
[]
[null,null,"NIF:"]
[null,null,{"$f":"+CAPA!C12","v":0}]
[]
[null,null,"SISTEMA DE INCENTIVOS:"]
[]
[null,null,{"$f":"+CAPA!C16","v":"INTERNACIONALIZAR 2020 II"}]
[]
[null,null,"Critérios de Seleção – Autoavaliação do Beneficiário"]
[]
[null,null,"  "]
[]
[null,null,null,"CRITÉRIO DE SELEÇÃO A – Qualidade do Projeto"]
[null,null,null,"Fatores a Valorizar"]
[null,null,null,"A1 – Coerência e pertinência do projeto em torno dos objetivos estratégicos definidos no domínio da internacionalização (identificação clara da estratégia e dos objetivos estratégicos)."]
[null,null,null,"A2 – Caráter inovador das iniciativas constantes do projeto, atendendo à natureza, à forma de prospeção e de presença nos mercados externos."]
[null,null,null,"A3 – Sustentabilidade financeira do projeto, tendo em atenção a credibilidade da proposta face ao plano de negócios da empresa e a forma de financiamento do projeto (enquadramento em termos financeiros do projeto no plano de negócios da empresa; rácios de rentabilidade do projeto e rácios financeiros da empresa, incluindo rácios de solvabilidade; recursos financeiros no financiamento do projeto, onde serão priveligiados os projetos com menor recurso a endividamento)."]
[]
[null,null,null,"Fundamentação A1 "]
[null,null,null,"- Identificação clara da estratégia e dos objetivos estratégicos, nomeadamente quanto à avaliação dos pontos fortes, pontos fracos, ameaças e oportunidades, aspetos económico-financeiros e de mercado para alcançar os resultados previstos"]
[]
[]
[]
[]
[]
[]
[]
[]
[]
[]
[]
[]
[]
[]
[]
[null,null,null,"Fundamentação A2"]
[null,null,null,"- Identificação e justificação dos fatores de valoração selecionados. ",null,null,null,null,null,null,"Sim","Não"]
[null,null,null,"   a) Na Inovação Organizacional, mobilização de recursos humanos qualificados, investimento na formação e desenvolvimento profissional e utilização de modelos de gestão de inovação aberta (market-oriented);"]
[null,null,null,"  b) Na Inovação de Marketing, conjunto de atividades tendentes à melhoria da qualidade intrínseca do produto, da sua promoção e distribuição em mercados-alvo definidos a preços competitivos, com o objetivo de criar um posicionamento diferenciado e valioso junto de consumidores em mercados claramente identificados."]
[]
[null,null,null,"- Identificação de quais as iniciativas a adotar no processo de internacionalização:",null,null,null,null,null,null,"Sim","Não"]
[null,null,null,"a) Integração de ações em mercados não tradicionais para a empresa, assegurando a diversificação dos mercados geográficos de exportação das empresas regionais;"]
[null,null,null,"b) Integração de iniciativas que se traduzam em novas formas de abordagem/ atuação nos mercados externos, face ao historial de promoção da empresa;"]
[null,null,null,"c) Integração de iniciativas de natureza complementar e de valorização de ações de promoção convencionais (por exemplo, presença em feiras), face ao histotrial de promoção da empresa;"]
[null,null,null,"d) Integração de iniciativas diferenciáveis face às iniciativas tradicionais de promoção do setor;"]
[null,null,null,"e) Integração de ações em mercados internacionais que se traduzem em parcerias de médio e longo prazo, assegurando a presença efetiva no exterior e a visibilidade das empresas regionais."]
[]
[null,null,null,"- Fundamentação do caráter inovador e das iniciativas selecionadas:"]
[]
[]
[]
[]
[]
[]
[]
[]
[]
[]
[]
[]
[]
[]
[]
[null,null,null,"Fundamentação A3"]
[null,null,null," - Avaliação da viabilidade económica e financeira do projeto."]
[null,null,null," - Apresentar os valores apurados para este subcritério: "]
[]
[null,null,null,"IR = Índice de Rentabilidade das Vendas",null,null,null,"Resultado líquido pós-projeto",null,"(inserir)"]
[null,null,null,"IRpós-projeto = (Resultado líquido / Volume negócios) x 100 ",null,{"$f":"+IF(ISERROR(+(I72/I73*100)),\"\",(I72/I73*100))","v":""},null,"Volume negócios pós projeto",null,"(inserir)"]
[]
[]
[null,null,null,"IS = Índice de Solvabilidade",null,null,null,"capital próprio pós-projeto",null,"(inserir)"]
[null,null,null,"ISpós-projeto = (capital próprio / total do passivo) x 100 ",null,{"$f":"+IF(ISERROR(+(I76/I77*100)),\"\",(I76/I77*100))","v":""},null," total do passivo pós-projeto",null,"(inserir)"]
[]
[null,null,null,"FP = Financiamento do Projeto",null,null,null,"capitais próprios do projeto",null,"(inserir)"]
[null,null,null,"FP = (capitais próprios do projeto / despesas elegiveis) x 100)",null,{"$f":"+IF(ISERROR(+(I79/I80*100)),\"\",(I79/I80*100))","v":""},null,"total das despesas elegíveis",null,"(inserir)"]
[]
[null,null,null,"- Fundamentação "]
[]
[]
[]
[]
[]
[]
[]
[]
[]
[]
[]
[]
[]
[]
[]
[null,null,null,"CRITÉRIO DE SELEÇÃO B – Grau de Abordagem aos Mercados Internacionais - este critério contribui, tambêm,  para o alinhamento do projeto com as realizações e resultados do programa Operacional Madeira 1420"]
[]
[null,null,null,"Prosseguindo a avaliação para resultados, é objeto de contratualização e monitorização o critério B como meta fixada a atingir pelo beneficiário e a ser avaliada em função do seu grau de cumprimento, nos termos estabelecidos no Anexo E do Regulamento anexo à Portaria n.º 29/2018, de 14 de fevereiro (Internacionalizar 2020)."]
[]
[null,null,null,"Fatores a Valorizar"]
[null,null,null," - Avaliar o impacto do projeto na orientação da empresa para os mercados externos, através do volume negócios internacionais, através da capacidade de penetração no mercado internacional, medido através da dinâmica das exportações (DE) e da intensidade das exportações (IE)."]
[null,null,null,"- Descrição da estratégia de internacionalização e principais mercados."]
[null,null,null,"Fundamentação"]
[null,null,null,"Apresentar os valores apurados para:"]
[null,null,null,"DE = [(VN1Intern  - VN0inter) / VN0intern x 100]",null,{"$f":"+IF(ISERROR(+((I107-I109)/I109)*100),\"\",(((I107-I109)/I109)*100))","v":""},null,"VN1Intern=volume de negócios internacional no ano pós-projeto",null,"(inserir)"]
[]
[null,null,null," IE = (VN1Intern / VN1total) x 100.",null,{"$f":"+IF(ISERROR(+(I107/I111*100)),\"\",(I107/I111*100))","v":""},null,"VN0intern=volume de negócios internacional no ano pré-projeto",null,"(inserir)"]
[]
[null,null,null,null,null,null,null,"VN1total=volume de negócios total",null,"(inserir)"]
[null,null,null,"- Fundamentação "]
[]
[]
[]
[]
[]
[]
[]
[]
[]
[]
[]
[]
[]
[]
[null,null,null,"CRITÉRIO DE SELEÇÃO C – Contributo do Projeto para a Qualificação e Valorização dos Recursos Humanos"]
[null,null,null,"Fatores a Valorizar"]
[null,null,null,"C1 – Peso dos trabalhadores com nível de qualificação igual ou superior ao nível VI no total de trabalhadores"]
[null,null,null,"C2 – Criação de emprego com nível de qualificação igual ou superior ao nível VI"]
[]
[null,null,null,"Fundamentação C1 e C2"]
[null,null,null," - Identificar o peso dos trabalhadores com nivel de qualificação igual ou superior ao nível VI."]
[null,null,null," - Identificar o nº de postos de trabalho a criar e sua qualificação"]
[null,null,null,"Apresentar o valor apurado para: "]
[null,null,null,"C1 = NT1≥ vi / NT1totais x 100",null,{"$f":"+IF(ISERROR(+(I136/I137*100)),\"\",(I136/I137*100))","v":""},null,"NT1≥ vi =nº de trabalhadores com qualificação superior e igual ao nível VI no ano pós-projeto",null,"(inserir)"]
[null,null,null,"- Identificar o nº de postos de trabalho a criar e sua qualificação",null,null,null,"NT1totais =nº de trabalhadores totais no ano pós-projeto",null,"(inserir)"]
[null,null,null,"C2 - Criação de emprego com nível de qualificação igual ou superior ao nível VI",null,null,"(inserir)"]
[null,null,null,"- Fundamentação "]
[]
[]
[]
[]
[]
[]
[]
[]
[]
[]
[]
[]
[]
[]
[]
[null,null,null,"Notas:"]
[]
[null,null,null,"Critério B"]
[null,null,null,"VN Intern = Volume de negócios internacional: vendas e serviços prestados ao exterior. O conceito de volume negócios internacional inclui a prestação de serviços a não residentes e as vendas indiretas ao exterior. As vendas ao exterior devem estar devidamente relevadas na contabilidade da empresa, refletidas na Informação Empresarial Simplificada (IES) e sustentadas em indicadores que demonstrem as perspetivas de internacionalização do mercado, evolução estratégica da empresa e coerência com as ações previstas na candidatura."]
[]
[]
[null,null,null,"Prestação de serviços a não residentes = inclui alojamento, restauração e outras atividades declaradas de interesse para o Turismo."]
[null,null,null,"Vendas indiretas ao exterior = vendas a clientes no mercado regional quando, posteriormente, estas são incorporadas e/ou revendidas para o mercado externo. Devem ser claramente identificados os diferentes intervenientes na cadeia de vendas (clientes exportadores)."]
[]
[null,null,null,"VN0 = Volume de negócios no ano pré-projeto obtido no exercício económico anterior à data da candidatura."]
[null,null,null,"VN1 = Volume de negócios no ano pós-projeto obtido no primeiro exercício económico completo após a conclusão física e financeira do investimento."]
[null,null,null,"VNtotal = Volume de negócios total."]
[]
[null,null,null,"Critério C"]
[null,null,null,"Nos termos da Portaria n.º 782/2009 de 23 de julho, os níveis de qualificação de emprego a considerar no presente  critério são:"]
[null,null,null,"• Nível 6 - Licenciatura\n"]
[null,null,null,"• Nível 7 - Mestrado"]
[null,null,null,"• Nível 8 - Doutoramento"]

{"sheet":"Financiamento","index":6,"n_rows":105,"n_cols":29,"rows_kept":105,"cut":false,"hidden":false,"merged":[[89,4,90,28],[93,3,93,29],[95,3,95,28],[100,4,100,28],[101,4,101,28],[104,3,104,28],[7,2,7,5],[92,3,92,29],[96,4,96,28],[97,4,97,28],[98,4,98,28],[99,4,99,28],[20,3,20,28],[21,3,21,8],[21,9,21,11],[21,12,21,14],[21,15,21,18],[21,19,21,23],[21,24,21,28],[14,2,14,29],[19,3,19,8],[19,9,19,11],[19,12,19,14],[19,15,19,18],[19,19,19,23],[19,24,19,28],[24,3,24,8],[24,9,24,11],[24,12,24,14],[24,15,24,18],[24,19,24,23],[24,24,24,28],[22,3,22,8],[22,9,22,11],[22,12,22,14],[22,15,22,18],[22,19,22,23],[22,24,22,28],[23,3,23,8],[23,9,23,11],[23,12,23,14],[23,15,23,18],[23,19,23,23],[23,24,23,28],[26,3,26,8],[26,9,26,11],[26,12,26,14],[26,15,26,18],[26,19,26,23],[26,24,26,28],[25,3,25,8],[25,9,25,11],[25,12,25,14],[25,15,25,18],[25,19,25,23],[25,24,25,28],[30,3,30,8],[30,9,30,11],[30,12,30,14],[30,15,30,18],[30,19,30,23],[30,24,30,28],[28,3,28,28],[29,3,29,8],[29,9,29,11],[29,12,29,14],[29,15,29,18],[29,19,29,23],[29,24,29,28],[32,24,32,28],[33,3,33,8],[33,9,33,11],[33,12,33,14],[33,15,33,18],[33,19,33,23],[33,24,33,28],[31,9,31,11],[31,12,31,14],[31,15,31,18],[31,19,31,23],[31,24,31,28],[32,3,32,8],[32,9,32,11],[32,12,32,14],[32,15,32,18],[32,19,32,23],[35,3,35,8],[35,9,35,11],[35,12,35,14],[35,15,35,18],[35,19,35,23],[35,24,35,28],[34,3,34,8],[34,9,34,11],[34,12,34,14],[34,15,34,18],[34,19,34,23],[34,24,34,28],[37,3,37,8],[37,9,37,11],[37,12,37,14],[37,15,37,18],[37,19,37,23],[37,24,37,28],[36,3,36,8],[36,9,36,11],[36,12,36,14],[36,15,36,18],[36,19,36,23],[36,24,36,28],[85,3,85,28],[86,3,86,28],[87,4,87,28],[88,4,88,28],[60,23,60,27],[58,3,58,5],[58,7,58,10],[58,13,58,21],[58,23,58,27],[59,3,59,5],[59,7,59,10],[59,14,59,20],[59,23,59,27],[38,19,38,23],[38,24,38,28],[47,3,49,28],[83,3,83,28],[84,3,84,28],[51,3,51,8],[51,13,51,24],[53,21,53,23],[54,21,54,23],[57,3,57,10],[57,13,57,21],[57,23,57,27],[4,2,4,29],[11,2,11,29],[40,3,40,8],[40,9,40,11],[40,12,40,14],[40,15,40,18],[40,19,40,23],[40,24,40,28],[39,3,39,8],[39,9,39,11],[27,3,27,8],[27,9,27,11],[27,12,27,14],[27,15,27,18],[27,19,27,23],[27,24,27,28],[39,12,39,14],[39,15,39,18],[39,19,39,23],[39,24,39,28],[38,3,38,8],[38,9,38,11],[38,12,38,14],[38,15,38,18]]}
[]
[]
[null,null,"BENEFICIÁRIO:"]
[]
[null,null,{"$f":"+CAPA!C9","v":0}]
[]
[null,null,"NIF:"]
[null,null,{"$f":"+CAPA!C12","v":0}]
[]
[null,null,"SISTEMA DE INCENTIVOS:"]
[]
[null,null,{"$f":"+CAPA!C16","v":"INTERNACIONALIZAR 2020 II"}]
[]
[]
[null,null,"FINANCIAMENTO DO PROJECTO"]
[]
[]
[null,null,null,"Estrutura de Financiamento (Recursos Financeiros)    "]
[null,null,null,"Nota: na bolsa de candidaturas é obrigatório o preenchimento do valor do Incentivo Não Reembolsável (INR)"]
[null,null,null,"Fontes",null,null,null,null,null,"n",null,null,"n+1",null,null,"n+2",null,null,null,"Total",null,null,null,null,"% Investimento"]
[null,null,null,"1. Capitais Próprios (1)"]
[null,null,null,"Capital",null,null,null,null,null,null,null,null,null,null,null,null,null,null,null,{"$f":"SUM(J22:S22)","v":0},null,null,null,null,{"$f":"IF(ISERROR(T22/$T$41),\"0%\",T22/$T$41)","v":"0%"}]
[null,null,null,"Prestações Suplementares de Capital",null,null,null,null,null,null,null,null,null,null,null,null,null,null,null,{"$f":"SUM(J23:S23)","v":0},null,null,null,null,"0%"]
[null,null,null,"Suprimentos consolidados (2)",null,null,null,null,null,null,null,null,null,null,null,null,null,null,null,{"$f":"SUM(J24:S24)","v":0},null,null,null,null,"0%"]
[null,null,null,"Sub-Total 1",null,null,null,null,null,{"$f":"SUM(J22:L24)","v":0},null,null,{"$f":"SUM(M22:O24)","v":0},null,null,0,null,null,null,{"$f":"+J25+M25+P25","v":0},null,null,null,null,"0%"]
[null,null,null,"2. Autofinanciamento (3)",null,null,null,null,null,null,null,null,null,null,null,null,null,null,null,{"$f":"SUM(J26:S26)","v":0},null,null,null,null,"0%"]
[null,null,null,"3. Outros (4)",null,null,null,null,null,null,null,null,null,null,null,null,null,null,null,{"$f":"SUM(J27:S27)","v":0},null,null,null,null,"0%"]
[null,null,null,"Sub-Total 2",null,null,null,null,null,{"$f":"+J27+J26","v":0},null,null,{"$f":"+M27+M26","v":0},null,null,{"$f":"+P27+P26","v":0},null,null,null,{"$f":"SUM(J28:S28)","v":0},null,null,null,null,"0%"]
[null,null,null,"4. Capitais Alheios"]
[null,null,null,"Dívidas a Instituições de Crédito",null,null,null,null,null,null,null,null,null,null,null,null,null,null,null,{"$f":"SUM(J30:S30)","v":0},null,null,null,null,{"$f":"IF(ISERROR(T30/$T$41),\"0%\",T30/$T$41)","v":"0%"}]
[null,null,null,"Empréstimos Obrigacionistas",null,null,null,null,null,null,null,null,null,null,null,null,null,null,null,0,null,null,null,null,{"$f":"IF(ISERROR(T31/$T$41),\"0%\",T31/$T$41)","v":"0%"}]
[null,null,null,"Outras dívidas a Sócios / accionistas",null,null,null,null,null,null,null,null,null,null,null,null,null,null,null,0,null,null,null,null,{"$f":"IF(ISERROR(T32/$T$41),\"0%\",T32/$T$41)","v":"0%"}]
[null,null,null,"Fornecedores Imobilizado",null,null,null,null,null,null,null,null,null,null,null,null,null,null,null,0,null,null,null,null,"0%"]
[null,null,null,"Locação Financeira",null,null,null,null,null,null,null,null,null,null,null,null,null,null,null,0,null,null,null,null,"0%"]
[null,null,null,"Outros",null,null,null,null,null,null,null,null,null,null,null,null,null,null,null,0,null,null,null,null,"0%"]
[null,null,null,"Sub-Total 3",null,null,null,null,null,{"$f":"+J35+J34+J33+J32+J31+J30","v":0},null,null,{"$f":"+M35+M34+M33+M32+M31+M30","v":0},null,null,{"$f":"+P30+P31+P32+P33+P34+P35","v":0},null,null,null,{"$f":"+J36+M36+P36","v":0},null,null,null,null,{"$f":"IF(ISERROR(T36/$T$41),\"0%\",T36/$T$41)","v":"0%"}]
[null,null,null,"Incentivo Não Reembolsável (INR),                                            obrigatório o preenchimento",null,null,null,null,null,null,null,null,null,null,null,null,null,null,null,{"$f":"SUM(J37:S37)","v":0},null,null,null,null,"0%"]
[null,null,null,"Incentivo Reembolsável (IR)",null,null,null,null,null,null,null,null,null,null,null,null,null,null,null,{"$f":"SUM(J38:S38)","v":0},null,null,null,null,"0%"]
[null,null,null,"Sub-Total 4",null,null,null,null,null,{"$f":"+J37+J38","v":0},null,null,{"$f":"+M37+M38","v":0},null,null,{"$f":"+P37+P38","v":0},null,null,null,{"$f":"+M39+P39+J39","v":0},null,null,null,null,"0%"]
[null,null,null,"FINANCIAMENTO TOTAL",null,null,null,null,null,{"$f":"+J39+J36+J25","v":0},null,null,{"$f":"+M39+M36+M25","v":0},null,null,{"$f":"+P39+P36+P25","v":0},null,null,null,{"$f":"+P40+M40+J40","v":0},null,null,null,null,"0%"]
[null,null,null,"INVESTIMENTO TOTAL(5)",null,null,null,null,null,null,null,null,null,null,null,null,null,null,null,{"$f":"+J41+M41+P41","v":0}]
[null,null,null,"(1) Novos capitais próprios"]
[null,null,null,"(2) Novos suprimentos a incorporar em capital próprio até ao encerramento do projecto, para efeitos de cumprimento da condição de elegibilidade do projeto e do Subcritério A3 (FP)"]
[null,null,null,"(3) Resultado líquido do exercício + imparidades + provisões + gastos/reversões de depreciação e amortização, do ano pré-projecto"]
[null,null,null,"(4) Reafectação de valores do activo sem reflexo no autofinanciamento"]
[null,null,null,"(5) Investimento total de preencimento obrigatório"]
[]
[]
[]
[]
[]
[null,null,null,"Financiamento Bancário Assegurado",null,null,null,null,null,null,null,null,null,"Modalidades de Intervenção da Instituição de Crédito"]
[null,null,null,null,null,null,null,null,null,null,null,null,null,"Pedido de Financiamento à Instituição de Crédito:"]
[null,null,null,null,"Sim",null,null,"Não",null,null,null,null,null,"Crédito Bancário",null,null,null,null,null,"Montante:"]
[null,null,null,null,null,null,null,null,null,null,null,null,null,"Locação Financeira",null,null,null,null,null,"Montante:"]
[null,null,null,null,null,null,null,null,null,null,null,null,null,"Prestação de Garantia Bancária"]
[]
[null,null,null,"Outras Formas Financiamento",null,null,null,null,null,null,null,null,null,"Financiado por capitais próprios ",null,null,null,null,null,null,null,null,null,"Capital Próprio Projeto - CPp"]
[null,null,null,"Garantia Mútua",null,null,null,"                 Outra",null,null,null,null,null,"(CPp/DEp)",null,null,null,null,null,null,null,null,null,{"$f":"+T25","v":0}]
[null,null,null,"Capital Risco",null,null,null,null,null,null,null,null,null,null,{"$f":"+IF(ISERROR(+X59/X61),\"\",X59/X61)","v":""},null,null,null,null,null,null,null,null,"Despesa elegível projeto - Dep"]
[null,null,null,null,null,null,null,null,null,null,null,null,null,null,null,null,null,null,null,null,null,null,null,null,null,null,null,null,"(inserir)"]
[]
[]
[]
[]
[null,null,null,"Demonstração das Fontes de Financiamento"]
[]
[]
[]
[]
[]
[]
[]
[]
[]
[]
[]
[]
[]
[]
[null,null,null,"Descrição das Fontes de Financiamento: "]
[null,null,null,"O beneficiário deverá justificar os valores e fontes indicadas na tabela, através de uma breve descrição."]
[]
[null,null,null,"Pretende-se, no quadro de Estrutura de Financiamento (Recursos Financeiros) do projeto, a indicação dos meios de financiamento do investimento nos anos da sua execução. "]
[null,null,null,"O financiamento total e anual deve ser coincidente com o correspondente investimento total e anual, inserido no quadro dos investimentos."]
[null,null,null,"O beneficiário tem de evidenciar que as fontes de financiamento estão asseguradas, devendo os correspondentes documentos comprovativos constar do Dossier de Projeto: "]
[null,null,null,"Capitais Próprios "]
[null,null,null,null,"Capital - indicação de qual o aumento de capital que, eventualmente, irá financiar o investimento. "]
[null,null,null,null,"Prestações Suplementares de Capital - indicação de qual o aumento de prestações suplementares que, eventualmente, irá financiar o investimento. "]
[null,null,null,null,"Suprimentos -  Novos suprimentos a incorporar em capital próprio até ao encerramento do projecto, para efeitos de cumprimento da condição de elegibilidade do projeto e do Subcritério A3 (FP)."]
[]
[null,null,null,"Autofinanciamento "]
[null,null,null,"Poderá ser utilizado em cada ano de execução do investimento, um valor de autofinanciamento, que tenha como limite os meios libertos líquidos\n (Resultados Líquidos do Período + Gastos/Reversões de Depreciação e de Amortização + Imparidades + Provisões + Aumentos/reduções de justo valor)."]
[null,null,null,"Outros, poderão ser utilizadas outras forma de financiamento"]
[]
[null,null,null,"Capitais Alheios: "]
[null,null,null,null,"Dividas Instituições de Crédito - indicação de qual o valor de empréstimos bancários que, eventualmente, irá financiar o investimento. Na fase de candidatura, deverá entregar o documento comprovativo da aprovação do financiamento bancário ou de intenção de financiamento. "]
[null,null,null,null,"Empréstimos por Obrigações - Indicação de qual o valor de empréstimos obrigacionistas que, eventualmente, irá financiar o investimento. Na fase de candidatura, deverá dispor no Dossier do Projeto, da cópia da ata deliberativa da realização do empréstimo obrigacionista, incluindo as respetivas condições, nomeadamente, o montante, a taxa de juro, o valor nominal, o preço de emissão, o valor de reembolso e o método de amortização das obrigações. "]
[null,null,null,null,"Dívidas a Sócios/Acionistas - Indicação de qual o valor de outras eventuais dívidas a sócios/acionistas, que irão financiar o investimento. "]
[null,null,null,null,"Fornecedores imobilizado - indicação de qual o valor de fornecedores de imobilizado que, eventualmente, irá financiar o investimento. A maturidade do crédito concedido por Fornecedores de Imobilizado terá de ser igual ao prazo de execução do investimento. Na fase de candidatura, o documento comprovativo do acordo com o fornecedor de imobilizado, deverá integrar o Dossier de Projeto. "]
[null,null,null,null,"Locação Financeira – referência ao valor de locação financeira que, eventualmente, irá financiar o investimento. O beneficiário deve comprometer-se a concretizar a opção de compra do bem locado, no final do contrato de locação financeira. "]
[null,null,null,null,"Outros - Indicação de qual o valor de outras eventuais outras fontes, que irão financiar o investimento. "]
[]
[null,null,null,"Incentivos: "]
[null,null,null,"O beneficiário deverá indicar o montante de incentivo não reembolsável que previsivelmente lhe venha a ser atribuído de acordo com as taxas e regras constantes do Regulamento. "]

{"sheet":"Balanço empresa ","index":7,"n_rows":84,"n_cols":18,"rows_kept":84,"cut":false,"hidden":false,"merged":[[3,2,3,18],[10,2,10,18],[6,2,6,5],[16,3,16,4],[16,16,16,17],[12,2,12,18],[14,2,14,7],[14,8,14,10],[17,3,17,13],[17,14,17,15],[18,3,18,13],[18,14,18,15],[19,3,19,13],[19,14,19,15],[20,3,20,13],[20,14,20,15],[21,3,21,13],[21,14,21,15],[22,3,22,13],[22,14,22,15],[23,3,23,13],[23,14,23,15],[24,3,24,13],[24,14,24,15],[25,3,25,13],[25,14,25,15],[26,3,26,13],[26,14,26,15],[27,3,27,13],[27,14,27,15],[28,3,28,13],[28,14,28,15],[40,14,40,15],[30,3,30,13],[30,14,30,15],[31,14,31,15],[32,14,32,15],[33,14,33,15],[34,14,34,15],[35,14,35,15],[36,14,36,15],[37,14,37,15],[38,14,38,15],[39,14,39,15],[41,14,41,15],[42,14,42,15],[43,14,43,15],[44,14,44,15],[46,3,46,13],[46,14,46,15],[58,14,58,15],[47,14,47,15],[48,14,48,15],[49,14,49,15],[50,14,50,15],[51,14,51,15],[52,14,52,15],[53,14,53,15],[54,14,54,15],[55,14,55,15],[56,14,56,15],[57,14,57,15],[71,14,71,15],[59,14,59,15],[60,14,60,15],[62,14,62,15],[63,14,63,15],[64,14,64,15],[65,14,65,15],[66,14,66,15],[67,14,67,15],[68,14,68,15],[69,14,69,15],[70,14,70,15],[83,14,83,15],[72,14,72,15],[73,14,73,15],[74,14,74,15],[75,14,75,15],[76,14,76,15],[77,14,77,15],[78,14,78,15],[79,14,79,15],[80,14,80,15],[81,14,81,15],[82,14,82,15]]}
[]
[null,null,"BENEFICIÁRIO:"]
[]
[null,null,{"$f":"+CAPA!C9","v":0}]
[]
[null,null,"NIF:"]
[null,null,{"$f":"+CAPA!C12","v":0}]
[]
[null,null,"SISTEMA DE INCENTIVOS:"]
[]
[null,null,{"$f":"+CAPA!C16","v":"INTERNACIONALIZAR 2020 II"}]
[]
[null,null,"BALANÇO DA EMPRESA Pré candidatura"]
[]
[null,null,"Data da candidatura:"]
[]
[null,null,null,"(euros)",null,null,null,null,null,null,null,null,null,null,null,null,"EMPRESA PRÉ CANDIDATURA"]
[null,null,null,"ACTIVO",null,null,null,null,null,null,null,null,null,null,"Notas",null,{"$f":"IF(YEAR($I$15)=\"\",\"\",YEAR($I$15)-2)","v":1898},{"$f":"IF(YEAR($I$15)=\"\",\"\",YEAR($I$15)-1)","v":1899}]
[null,null,null,"Activo não corrente"]
[null,null,null,"activos fixos tangíveis"]
[null,null,null,"Propriedades de investimento"]
[null,null,null,"Goodwill"]
[null,null,null,"Activos Intangíveis"]
[null,null,null,"Activos biológicos"]
[null,null,null,"Participações financeiras - método da equivalência patrimonial"]
[null,null,null,"Participações financeiras - outros métodos"]
[null,null,null,"Accionistas/sócios"]
[null,null,null,"Outros activos financeiros"]
[null,null,null,"Activos por impostos diferidos"]
[null,null,null,null,null,null,null,null,null,null,null,null,null,null,null,null,{"$f":"+Q19+Q20+Q21+Q22+Q23+Q24+Q25+Q26+Q27+Q28+Q29","v":0},0]
[null,null,null,"Activo corrente"]
[null,null,null,"Inventários "]
[null,null,null,"Activos biológicos"]
[null,null,null,"Clientes"]
[null,null,null,"Adiantamentos a fornecedores"]
[null,null,null,"Estado e outros entes públicos"]
[null,null,null,"Accionistas/sócios"]
[null,null,null,"Outras contas a receber"]
[null,null,null,"Diferimentos"]
[null,null,null,"Activos financeiros detidos para negociação"]
[null,null,null,"Outros activos financeiros"]
[null,null,null,"Activos não correntes detidos para venda"]
[null,null,null,"Caixa e depósitos bancários"]
[null,null,null,null,null,null,null,null,null,null,null,null,null,null,null,null,{"$f":"+Q31+Q32+Q33+Q34+Q35+Q36+Q37+Q38+Q39+Q40+Q41+Q42+Q43","v":0},0]
[null,null,null,"TOTAL DO ACTIVO",null,null,null,null,null,null,null,null,null,null,null,null,{"$f":"+Q30+Q44","v":0},0]
[]
[null,null,null,"CAPITAL PRÓPRIO E PASSIVO"]
[null,null,null,"CAPITAL PRÓPRIO  "]
[null,null,null,"Capital realizado"]
[null,null,null,"Acções (quotas) próprias "]
[null,null,null,"Outros instrumentos de capital próprio"]
[null,null,null,"Prémios de emissão"]
[null,null,null,"Reservas legais"]
[null,null,null,"Outras reservas"]
[null,null,null,"Resultados transitados"]
[null,null,null,"Ajustamentos em activos financeiros"]
[null,null,null,"Excedentes de revalorização"]
[null,null,null,"Outras variações no capital próprio"]
[null,null,null,"Resultado líquido do período "]
[null,null,null,"Interesses minoritários"]
[null,null,null,"Total do capital próprio",null,null,null,null,null,null,null,null,null,null,null,null,{"$f":"+Q48+Q49+Q50+Q51+Q52+Q53+Q54+Q55+Q56+Q57+Q58+Q59+Q60","v":0},0]
[]
[null,null,null,"Passivo"]
[null,null,null,"Passivo não corrente"]
[null,null,null,"Provisões"]
[null,null,null,"Financiamentos obtidos"]
[null,null,null,"Responsabilidades por belefícios pós-emprego"]
[null,null,null,"Passivos por impostos diferidos"]
[null,null,null,"Outras contas a pagar"]
[null,null,null,null,null,null,null,null,null,null,null,null,null,null,null,null,{"$f":"+Q63+Q64+Q65+Q66+Q67+Q68+Q69","v":0},0]
[null,null,null,"Passivo corrente"]
[null,null,null,"Fornecedores"]
[null,null,null,"Adiantamento de clientes"]
[null,null,null,"Estado e outros entes públicos"]
[null,null,null,"Accionistas/sócios"]
[null,null,null,"Financiamentos obtidos"]
[null,null,null,"Outras contas a pagar"]
[null,null,null,"Diferimentos"]
[null,null,null,"Passivos financeiros detidos para negociação"]
[null,null,null,"Outros passivos financeiros"]
[null,null,null,"Passivos não correntes detidos para venda"]
[null,null,null,null,null,null,null,null,null,null,null,null,null,null,null,null,{"$f":"+Q71+Q72+Q73+Q74+Q75+Q76+Q77+Q78+Q79+Q80+Q81","v":0},0]
[null,null,null,"Total do passivo",null,null,null,null,null,null,null,null,null,null,null,null,{"$f":"+Q70+Q82","v":0},0]
[null,null,null,"Total do capital próprio e do passivo",null,null,null,null,null,null,null,null,null,null,null,null,{"$f":"+Q61+Q83","v":0},0]

{"sheet":"Balanço da empresa pós Proj","index":8,"n_rows":84,"n_cols":26,"rows_kept":84,"cut":false,"hidden":false,"merged":[[16,3,16,4],[16,16,16,25],[12,2,12,26],[14,2,14,7],[14,8,14,10],[17,3,17,13],[17,14,17,15],[18,3,18,13],[18,14,18,15],[19,3,19,13],[19,14,19,15],[20,3,20,13],[20,14,20,15],[21,3,21,13],[21,14,21,15],[22,3,22,13],[22,14,22,15],[23,3,23,13],[23,14,23,15],[24,3,24,13],[24,14,24,15],[25,3,25,13],[25,14,25,15],[26,3,26,13],[26,14,26,15],[27,3,27,13],[27,14,27,15],[28,3,28,13],[28,14,28,15],[40,14,40,15],[30,3,30,13],[30,14,30,15],[31,14,31,15],[32,14,32,15],[33,14,33,15],[34,14,34,15],[35,14,35,15],[36,14,36,15],[37,14,37,15],[38,14,38,15],[39,14,39,15],[41,14,41,15],[42,14,42,15],[43,14,43,15],[44,14,44,15],[46,3,46,13],[46,14,46,15],[70,14,70,15],[58,14,58,15],[47,14,47,15],[48,14,48,15],[49,14,49,15],[50,14,50,15],[51,14,51,15],[52,14,52,15],[53,14,53,15],[54,14,54,15],[55,14,55,15],[56,14,56,15],[57,14,57,15],[65,14,65,15],[66,14,66,15],[67,14,67,15],[68,14,68,15],[69,14,69,15],[59,14,59,15],[60,14,60,15],[62,14,62,15],[63,14,63,15],[64,14,64,15],[3,2,3,17],[6,2,6,5],[10,2,10,17],[83,14,83,15],[72,14,72,15],[73,14,73,15],[74,14,74,15],[75,14,75,15],[76,14,76,15],[77,14,77,15],[78,14,78,15],[79,14,79,15],[80,14,80,15],[81,14,81,15],[82,14,82,15],[71,14,71,15]]}
[]
[null,null,"BENEFICIÁRIO:"]
[]
[null,null,{"$f":"+CAPA!C9","v":0}]
[]
[null,null,"NIF:"]
[null,null,{"$f":"+CAPA!C12","v":0}]
[]
[null,null,"SISTEMA DE INCENTIVOS:"]
[]
[null,null,{"$f":"+CAPA!C16","v":"INTERNACIONALIZAR 2020 II"}]
[]
[null,null,"BALANÇO DA EMPRESA PÓS PROJECTO"]
[]
[null,null,"Data de Inicio da despesa:"]
[]
[null,null,null,"(euros)",null,null,null,null,null,null,null,null,null,null,null,null,"EMPRESA PÓS PROJETO"]
[null,null,null,"ACTIVO",null,null,null,null,null,null,null,null,null,null,"Notas",null,{"$f":"IF(YEAR($I$15)=\"\",\"\",YEAR($I$15))","v":1900},{"$f":"IF(YEAR($I$15)=\"\",\"\",YEAR($I$15)+1)","v":1901},{"$f":"IF(YEAR($I$15)=\"\",\"\",YEAR($I$15)+2)","v":1902},{"$f":"IF(YEAR($I$15)=\"\",\"\",YEAR($I$15)+3)","v":1903},{"$f":"IF(YEAR($I$15)=\"\",\"\",YEAR($I$15)+4)","v":1904},{"$f":"IF(YEAR($I$15)=\"\",\"\",YEAR($I$15)+5)","v":1905},{"$f":"IF(YEAR($I$15)=\"\",\"\",YEAR($I$15)+6)","v":1906},{"$f":"IF(YEAR($I$15)=\"\",\"\",YEAR($I$15)+7)","v":1907},{"$f":"IF(YEAR($I$15)=\"\",\"\",YEAR($I$15)+8)","v":1908},{"$f":"IF(YEAR($I$15)=\"\",\"\",YEAR($I$15)+9)","v":1909}]
[null,null,null,"Activo não corrente"]
[null,null,null,"activos fixos tangíveis"]
[null,null,null,"Propriedades de investimento"]
[null,null,null,"Goodwill"]
[null,null,null,"Activos Intangíveis"]
[null,null,null,"Activos biológicos"]
[null,null,null,"Participações financeiras - método da equivalência patrimonial"]
[null,null,null,"Participações financeiras - outros métodos"]
[null,null,null,"Accionistas/sócios"]
[null,null,null,"Outros activos financeiros"]
[null,null,null,"Activos por impostos diferidos"]
[null,null,null,null,null,null,null,null,null,null,null,null,null,null,null,null,{"$f":"+Q20+Q21+Q22+Q23+Q24+Q25+Q26+Q27+Q28+Q29","v":0},{"$f":"+R20+R21+R22+R23+R24+R25+R26+R27+R28+R29","v":0},0,0,0,0,0,0,0,0]
[null,null,null,"Activo corrente"]
[null,null,null,"Inventários "]
[null,null,null,"Activos biológicos"]
[null,null,null,"Clientes"]
[null,null,null,"Adiantamentos a fornecedores"]
[null,null,null,"Estado e outros entes públicos"]
[null,null,null,"Accionistas/sócios"]
[null,null,null,"Outras contas a receber"]
[null,null,null,"Diferimentos"]
[null,null,null,"Activos financeiros detidos para negociação"]
[null,null,null,"Outros activos financeiros"]
[null,null,null,"Activos não correntes detidos para venda"]
[null,null,null,"Caixa e depósitos bancários"]
[null,null,null,null,null,null,null,null,null,null,null,null,null,null,null,null,{"$f":"+Q32+Q33+Q34+Q35+Q36+Q37+Q38+Q39+Q40+Q41+Q42+Q43","v":0},{"$f":"+R32+R33+R34+R35+R36+R37+R38+R39+R40+R41+R42+R43","v":0},0,0,0,0,0,0,0,0]
[null,null,null,"TOTAL DO ACTIVO",null,null,null,null,null,null,null,null,null,null,null,null,{"$f":"+Q30+Q44","v":0},0,0,0,0,0,0,0,0,0]
[]
[null,null,null,"CAPITAL PRÓPRIO E PASSIVO"]
[null,null,null,"CAPITAL PRÓPRIO  "]
[null,null,null,"Capital realizado"]
[null,null,null,"Acções (quotas) próprias "]
[null,null,null,"Outros instrumentos de capital próprio"]
[null,null,null,"Prémios de emissão"]
[null,null,null,"Reservas legais"]
[null,null,null,"Outras reservas"]
[null,null,null,"Resultados transitados"]
[null,null,null,"Ajustamentos em activos financeiros"]
[null,null,null,"Excedentes de revalorização"]
[null,null,null,"Outras variações no capital próprio"]
[null,null,null,"Resultado líquido do período "]
[null,null,null,"Interesses minoritários"]
[null,null,null,"Total do capital próprio",null,null,null,null,null,null,null,null,null,null,null,null,{"$f":"+Q48+Q49+Q50+Q51+Q52+Q53+Q54+Q55+Q56+Q57+Q58+Q59+Q60","v":0},0,0,0,0,0,0,0,0,0]
[]
[null,null,null,"Passivo"]
[null,null,null,"Passivo não corrente"]
[null,null,null,"Provisões"]
[null,null,null,"Financiamentos obtidos"]
[null,null,null,"Responsabilidades por belefícios pós-emprego"]
[null,null,null,"Passivos por impostos diferidos"]
[null,null,null,"Outras contas a pagar"]
[null,null,null,null,null,null,null,null,null,null,null,null,null,null,null,null,{"$f":"++Q65+Q66+Q67+Q68+Q69","v":0},{"$f":"+R63+R64+R65+R66+R67+R68+R69","v":0},0,0,0,0,0,0,0,0]
[null,null,null,"Passivo corrente"]
[null,null,null,"Fornecedores"]
[null,null,null,"Adiantamento de clientes"]
[null,null,null,"Estado e outros entes públicos"]
[null,null,null,"Accionistas/sócios"]
[null,null,null,"Financiamentos obtidos"]
[null,null,null,"Outras contas a pagar"]
[null,null,null,"Diferimentos"]
[null,null,null,"Passivos financeiros detidos para negociação"]
[null,null,null,"Outros passivos financeiros"]
[null,null,null,"Passivos não correntes detidos para venda"]
[null,null,null,null,null,null,null,null,null,null,null,null,null,null,null,null,{"$f":"+Q72+Q73+Q74+Q75+Q76+Q77+Q78+Q79+Q80+Q81","v":0},{"$f":"+R72+R73+R74+R75+R76+R77+R78+R79+R80+R81","v":0},0,0,0,0,0,0,0,0]
[null,null,null,"Total do passivo",null,null,null,null,null,null,null,null,null,null,null,null,{"$f":"+Q70+Q82","v":0},0,0,0,0,0,0,0,0,0]
[null,null,null,"Total do capital próprio e do passivo",null,null,null,null,null,null,null,null,null,null,null,null,{"$f":"+Q61+Q83","v":0},0,0,0,0,0,0,0,0,0]

{"sheet":"D. Resultados empresa","index":9,"n_rows":54,"n_cols":18,"rows_kept":54,"cut":false,"hidden":false,"merged":[[51,3,51,13],[51,14,51,15],[52,3,52,13],[52,14,52,15],[53,3,53,13],[53,14,53,15],[6,2,6,5],[12,2,12,18],[15,16,15,17],[3,2,3,18],[10,2,10,18],[16,3,16,13],[17,3,17,13],[17,14,17,15],[18,3,18,13],[19,3,19,13],[22,3,22,13],[23,3,23,13],[24,3,24,13],[25,3,25,13],[26,3,26,13],[27,3,27,13],[28,3,28,13],[29,3,29,13],[30,3,30,13],[31,3,31,13],[32,3,32,13],[33,3,33,13],[34,3,34,13],[35,3,35,13],[36,3,36,13],[37,3,37,13],[38,3,38,13],[39,3,39,13],[40,3,40,13],[41,3,41,13],[43,3,43,13],[43,14,43,15],[45,3,45,13],[45,14,45,15],[49,3,49,13],[49,14,49,15],[46,3,46,13],[46,14,46,15],[47,3,47,13],[47,14,47,15]]}
[]
[null,null,"BENEFICIÁRIO:"]
[]
[null,null,{"$f":"+CAPA!C9","v":0}]
[]
[null,null,"NIF:"]
[null,null,{"$f":"+CAPA!C12","v":0}]
[]
[null,null,"SISTEMA DE INCENTIVOS:"]
[]
[null,null,{"$f":"+CAPA!C16","v":"INTERNACIONALIZAR 2020 II"}]
[]
[null,null,"DEMONSTRAÇÃO DE RESULTADOS pré candidatura"]
[null,null,"  "]
[]
[null,null,null,null,null,null,null,null,null,null,null,null,null,null,null,null,"EMPRESA PRÉ CANDIDATURA"]
[null,null,null,null,null,null,null,null,null,null,null,null,null,null,"Notas",null,{"$f":"+'Balanço empresa '!Q18","v":1898},{"$f":"+'Balanço empresa '!R18","v":1899}]
[null,null,null,"RENDIMENTOS E GASTOS"]
[null,null,null,"Vendas e serviços prestados",null,null,null,null,null,null,null,null,null,null,null,"+"]
[null,null,null,"Subsídios à exploração",null,null,null,null,null,null,null,null,null,null,null,"+"]
[null,null,null,"Ganhos/perdas imputados de subsidiárias, associadas e empreendimentos conjuntos",null,null,null,null,null,null,null,null,null,null,null,"+/-"]
[null,null,null,"Variação nos inventários da produção",null,null,null,null,null,null,null,null,null,null,null,"+/-"]
[null,null,null,"Trabalhos para a própria entidade",null,null,null,null,null,null,null,null,null,null,null,"+"]
[null,null,null,"Custo das mercadorias vendidas e das matérias consumidas",null,null,null,null,null,null,null,null,null,null,null,"-"]
[null,null,null,"Fornecimentos e serviços externos",null,null,null,null,null,null,null,null,null,null,null,"-"]
[null,null,null,"Gastos com o pessoal",null,null,null,null,null,null,null,null,null,null,null,"-"]
[null,null,null,"Imparidade de inventários (perdas/reversões)",null,null,null,null,null,null,null,null,null,null,null,"-/+"]
[null,null,null,"Imparidade de dívidas a receber (perdas/reversões)",null,null,null,null,null,null,null,null,null,null,null,"-/+"]
[null,null,null,"Provisões (perdas/reduções)",null,null,null,null,null,null,null,null,null,null,null,"-/+"]
[null,null,null,"Imparidade de investimentos não depreciáveis/amortizações (perdas/reversões)",null,null,null,null,null,null,null,null,null,null,null,"-/+"]
[null,null,null,"Aumentos/reduções de justo valor",null,null,null,null,null,null,null,null,null,null,null,"+/-"]
[null,null,null,"Outros rendimentos e ganhos",null,null,null,null,null,null,null,null,null,null,null,"+"]
[null,null,null,"Outros gastos e perdas",null,null,null,null,null,null,null,null,null,null,null,"-"]
[null,null,null,"Resultados antes de depreciações, gastos de financiamento e impostos",null,null,null,null,null,null,null,null,null,null,null,"=",{"$f":"SUM(Q19:Q33)","v":0},{"$f":"SUM(R19:R33)","v":0}]
[null,null,null,"Gastos/reversões de depreciação e de amortização",null,null,null,null,null,null,null,null,null,null,null,"-/+"]
[null,null,null,"Imparidade de investimentos depreciáveis/amorizáveis (perdas/reversões)",null,null,null,null,null,null,null,null,null,null,null,"-/+"]
[null,null,null,"Resultado operacional (antes de gastos de financiamento e impostos)",null,null,null,null,null,null,null,null,null,null,null,"=",{"$f":"+Q34+Q35+Q36","v":0},0]
[null,null,null,"Juros e rendimentos similares obtidos",null,null,null,null,null,null,null,null,null,null,null,"+"]
[null,null,null,"Juros e gastos similares suportados",null,null,null,null,null,null,null,null,null,null,null,"-"]
[null,null,null,"Resultado antes de impostos",null,null,null,null,null,null,null,null,null,null,null,"=",{"$f":"+Q37+Q38+Q39","v":0},0]
[null,null,null,"Imposto sobre o rendimento do período",null,null,null,null,null,null,null,null,null,null,null,"-/+"]
[null,null,null,"Resultado líquido do período",null,null,null,null,null,null,null,null,null,null,null,"=",{"$f":"+Q40+Q41","v":0},0]
[]
[null,null,null,"Resultado das actividades descontinuadas (líquido de impostos) incluido no resultado líquido do período"]
[]
[null,null,null,"Resultado líquido do período atribuível a: (2)"]
[null,null,null,"Detentores do capital da empresa-mãe"]
[null,null,null,"Interesses minoritários"]
[null,null,null,null,null,null,null,null,null,null,null,null,null,null,null,"=",{"$f":"+Q47+Q48","v":0},0]
[null,null,null,"Resultado por acção básico"]
[]
[null,null,null,"Outros Dados"]
[null,null,null,"Gastos de Amortização"]
[null,null,null,"Volume de Negócios Internacional "]

{"sheet":"D. Result da empresa pós Proj","index":10,"n_rows":56,"n_cols":26,"rows_kept":56,"cut":false,"hidden":false,"merged":[[53,3,53,13],[53,14,53,15],[54,3,54,13],[54,14,54,15],[55,3,55,13],[55,14,55,15],[3,2,3,17],[6,2,6,5],[10,2,10,17],[12,2,12,26],[15,16,15,25],[16,3,16,13],[17,3,17,13],[17,14,17,15],[18,3,18,13],[19,3,19,13],[22,3,22,13],[23,3,23,13],[24,3,24,13],[25,3,25,13],[26,3,26,13],[27,3,27,13],[28,3,28,13],[29,3,29,13],[30,3,30,13],[31,3,31,13],[32,3,32,13],[33,3,33,13],[34,3,34,13],[35,3,35,13],[36,3,36,13],[37,3,37,13],[38,3,38,13],[39,3,39,13],[40,3,40,13],[41,3,41,13],[43,3,43,13],[43,14,43,15],[45,3,45,13],[45,14,45,15],[49,3,49,13],[49,14,49,15],[46,3,46,13],[46,14,46,15],[47,3,47,13],[47,14,47,15]]}
[]
[null,null,"BENEFICIÁRIO:"]
[]
[null,null,{"$f":"+CAPA!C9","v":0}]
[]
[null,null,"NIF:"]
[null,null,{"$f":"+CAPA!C12","v":0}]
[]
[null,null,"SISTEMA DE INCENTIVOS:"]
[]
[null,null,{"$f":"+CAPA!C16","v":"INTERNACIONALIZAR 2020 II"}]
[]
[null,null,"DEMONSTRAÇÃO DE RESULTADOS DA EMPRESA PÓS PROJECTO"]
[null,null,"  "]
[]
[null,null,null,null,null,null,null,null,null,null,null,null,null,null,null,null,"EMPRESA PÓS PROJETO"]
[null,null,null,null,null,null,null,null,null,null,null,null,null,null,"Notas",null,{"$f":"+'Balanço do Projeto'!Q18","v":1900},{"$f":"+'Balanço do Projeto'!R18","v":1901},{"$f":"+'Balanço do Projeto'!S18","v":1902},{"$f":"+'Balanço do Projeto'!T18","v":1903},{"$f":"+'Balanço do Projeto'!U18","v":1904},{"$f":"+'Balanço do Projeto'!V18","v":1905},{"$f":"+'Balanço do Projeto'!W18","v":1906},{"$f":"+'Balanço do Projeto'!X18","v":1907},{"$f":"+'Balanço do Projeto'!Y18","v":1908},{"$f":"+'Balanço do Projeto'!Z18","v":1909}]
[null,null,null,"RENDIMENTOS E GASTOS"]
[null,null,null,"Vendas e serviços prestados",null,null,null,null,null,null,null,null,null,null,null,"+"]
[null,null,null,"Subsídios à exploração",null,null,null,null,null,null,null,null,null,null,null,"+"]
[null,null,null,"Ganhos/perdas imputados de subsidiárias, associadas e empreendimentos conjuntos",null,null,null,null,null,null,null,null,null,null,null,"+/-"]
[null,null,null,"Variação nos inventários da produção",null,null,null,null,null,null,null,null,null,null,null,"+/-"]
[null,null,null,"Trabalhos para a própria entidade",null,null,null,null,null,null,null,null,null,null,null,"+"]
[null,null,null,"Custo das mercadorias vendidas e das matérias consumidas",null,null,null,null,null,null,null,null,null,null,null,"-"]
[null,null,null,"Fornecimentos e serviços externos",null,null,null,null,null,null,null,null,null,null,null,"-"]
[null,null,null,"Gastos com o pessoal",null,null,null,null,null,null,null,null,null,null,null,"-"]
[null,null,null,"Imparidade de inventários (perdas/reversões)",null,null,null,null,null,null,null,null,null,null,null,"-/+"]
[null,null,null,"Imparidade de dívidas a receber (perdas/reversões)",null,null,null,null,null,null,null,null,null,null,null,"-/+"]
[null,null,null,"Provisões (perdas/reduções)",null,null,null,null,null,null,null,null,null,null,null,"-/+"]
[null,null,null,"Imparidade de investimentos não depreciáveis/amortizações (perdas/reversões)",null,null,null,null,null,null,null,null,null,null,null,"-/+"]
[null,null,null,"Aumentos/reduções de justo valor",null,null,null,null,null,null,null,null,null,null,null,"+/-"]
[null,null,null,"Outros rendimentos e ganhos",null,null,null,null,null,null,null,null,null,null,null,"+"]
[null,null,null,"Outros gastos e perdas",null,null,null,null,null,null,null,null,null,null,null,"-"]
[null,null,null,"Resultados antes de depreciações, gastos de financiamento e impostos",null,null,null,null,null,null,null,null,null,null,null,"=",{"$f":"SUM(Q19:Q33)","v":0},{"$f":"SUM(R19:R33)","v":0},0,0,0,0,0,0,0,0]
[null,null,null,"Gastos/reversões de depreciação e de amortização",null,null,null,null,null,null,null,null,null,null,null,"-/+"]
[null,null,null,"Imparidade de investimentos depreciáveis/amorizáveis (perdas/reversões)",null,null,null,null,null,null,null,null,null,null,null,"-/+"]
[null,null,null,"Resultado operacional (antes de gastos de financiamento e impostos)",null,null,null,null,null,null,null,null,null,null,null,"=",{"$f":"+Q34+Q35+Q36","v":0},0,0,0,0,0,0,0,0,0]
[null,null,null,"Juros e rendimentos similares obtidos",null,null,null,null,null,null,null,null,null,null,null,"+"]
[null,null,null,"Juros e gastos similares suportados",null,null,null,null,null,null,null,null,null,null,null,"-"]
[null,null,null,"Resultado antes de impostos",null,null,null,null,null,null,null,null,null,null,null,"=",{"$f":"+Q37+Q38+Q39","v":0},0,0,0,0,0,0,0,0,0]
[null,null,null,"Imposto sobre o rendimento do período",null,null,null,null,null,null,null,null,null,null,null,"-/+"]
[null,null,null,"Resultado líquido do período",null,null,null,null,null,null,null,null,null,null,null,"=",{"$f":"+Q40+Q41","v":0},0,0,0,0,0,0,0,0,0]
[]
[null,null,null,"Resultado das actividades descontinuadas (líquido de impostos) incluido no resultado líquido do período"]
[]
[null,null,null,"Resultado líquido do período atribuível a: (2)"]
[null,null,null,"Detentores do capital da empresa-mãe"]
[null,null,null,"Interesses minoritários"]
[null,null,null,null,null,null,null,null,null,null,null,null,null,null,null,"=",{"$f":"+Q47+Q48","v":0},0,0,0,0,0,0,0,0,0]
[null,null,null,"Resultado por acção básico"]
[]
[null,null,null,"ATENÇÃO - CAMPO DE PREENCHIMENTO OBRIGATÓRIO:"]
[]
[null,null,null,"Outros Dados"]
[null,null,null,"Gastos de Amortização"]
[null,null,null,"Volume de Negócios Internacional "]

{"sheet":"Balanço do Projeto","index":11,"n_rows":84,"n_cols":26,"rows_kept":84,"cut":false,"hidden":false,"merged":[[16,3,16,4],[16,16,16,25],[14,2,14,7],[14,8,14,10],[17,3,17,13],[17,14,17,15],[18,3,18,13],[18,14,18,15],[19,3,19,13],[19,14,19,15],[20,3,20,13],[20,14,20,15],[21,3,21,13],[21,14,21,15],[22,3,22,13],[22,14,22,15],[23,3,23,13],[23,14,23,15],[24,3,24,13],[24,14,24,15],[25,3,25,13],[25,14,25,15],[26,3,26,13],[26,14,26,15],[27,3,27,13],[27,14,27,15],[28,3,28,13],[28,14,28,15],[40,14,40,15],[30,3,30,13],[30,14,30,15],[31,14,31,15],[32,14,32,15],[33,14,33,15],[34,14,34,15],[35,14,35,15],[36,14,36,15],[37,14,37,15],[38,14,38,15],[39,14,39,15],[41,14,41,15],[42,14,42,15],[43,14,43,15],[44,14,44,15],[46,3,46,13],[46,14,46,15],[58,14,58,15],[47,14,47,15],[48,14,48,15],[49,14,49,15],[50,14,50,15],[51,14,51,15],[52,14,52,15],[53,14,53,15],[54,14,54,15],[55,14,55,15],[56,14,56,15],[57,14,57,15],[71,14,71,15],[59,14,59,15],[60,14,60,15],[62,14,62,15],[63,14,63,15],[64,14,64,15],[65,14,65,15],[66,14,66,15],[67,14,67,15],[68,14,68,15],[69,14,69,15],[70,14,70,15],[3,2,3,17],[6,2,6,5],[10,2,10,17],[12,2,12,26],[83,14,83,15],[72,14,72,15],[73,14,73,15],[74,14,74,15],[75,14,75,15],[76,14,76,15],[77,14,77,15],[78,14,78,15],[79,14,79,15],[80,14,80,15],[81,14,81,15],[82,14,82,15]]}
[]
[null,null,"BENEFICIÁRIO:"]
[]
[null,null,{"$f":"+CAPA!C9","v":0}]
[]
[null,null,"NIF:"]
[null,null,{"$f":"+CAPA!C12","v":0}]
[]
[null,null,"SISTEMA DE INCENTIVOS:"]
[]
[null,null,{"$f":"+CAPA!C16","v":"INTERNACIONALIZAR 2020 II"}]
[]
[null,null,"BALANÇO DO PROJETO"]
[]
[null,null,"Data de Inicio da despesa:",null,null,null,null,null,{"$f":"+'Balanço da empresa pós Proj'!I15:K15","v":"00:00:00"}]
[]
[null,null,null,"(euros)",null,null,null,null,null,null,null,null,null,null,null,null,"Projecto"]
[null,null,null,"ACTIVO",null,null,null,null,null,null,null,null,null,null,"Notas",null,{"$f":"IF(YEAR($I$15)=\"\",\"\",YEAR($I$15))","v":1900},{"$f":"IF(YEAR($I$15)=\"\",\"\",YEAR($I$15)+1)","v":1901},{"$f":"IF(YEAR($I$15)=\"\",\"\",YEAR($I$15)+2)","v":1902},{"$f":"IF(YEAR($I$15)=\"\",\"\",YEAR($I$15)+3)","v":1903},{"$f":"IF(YEAR($I$15)=\"\",\"\",YEAR($I$15)+4)","v":1904},{"$f":"IF(YEAR($I$15)=\"\",\"\",YEAR($I$15)+5)","v":1905},{"$f":"IF(YEAR($I$15)=\"\",\"\",YEAR($I$15)+6)","v":1906},{"$f":"IF(YEAR($I$15)=\"\",\"\",YEAR($I$15)+7)","v":1907},{"$f":"IF(YEAR($I$15)=\"\",\"\",YEAR($I$15)+8)","v":1908},{"$f":"IF(YEAR($I$15)=\"\",\"\",YEAR($I$15)+9)","v":1909}]
[null,null,null,"Activo não corrente"]
[null,null,null,"activos fixos tangíveis"]
[null,null,null,"Propriedades de investimento"]
[null,null,null,"Goodwill"]
[null,null,null,"Activos Intangíveis"]
[null,null,null,"Activos biológicos"]
[null,null,null,"Participações financeiras - método da equivalência patrimonial"]
[null,null,null,"Participações financeiras - outros métodos"]
[null,null,null,"Accionistas/sócios"]
[null,null,null,"Outros activos financeiros"]
[null,null,null,"Activos por impostos diferidos"]
[null,null,null,null,null,null,null,null,null,null,null,null,null,null,null,null,{"$f":"+Q20+Q21+Q22+Q23+Q24+Q25+Q26+Q27+Q28+Q29","v":0},{"$f":"+R20+R21+R22+R23+R24+R25+R26+R27+R28+R29","v":0},0,0,0,0,0,0,0,0]
[null,null,null,"Activo corrente"]
[null,null,null,"Inventários "]
[null,null,null,"Activos biológicos"]
[null,null,null,"Clientes"]
[null,null,null,"Adiantamentos a fornecedores"]
[null,null,null,"Estado e outros entes públicos"]
[null,null,null,"Accionistas/sócios"]
[null,null,null,"Outras contas a receber"]
[null,null,null,"Diferimentos"]
[null,null,null,"Activos financeiros detidos para negociação"]
[null,null,null,"Outros activos financeiros"]
[null,null,null,"Activos não correntes detidos para venda"]
[null,null,null,"Caixa e depósitos bancários"]
[null,null,null,null,null,null,null,null,null,null,null,null,null,null,null,null,{"$f":"+Q32+Q33+Q34+Q35+Q36+Q37+Q38+Q39+Q40+Q41+Q42+Q43","v":0},{"$f":"+R32+R33+R34+R35+R36+R37+R38+R39+R40+R41+R42+R43","v":0},0,0,0,0,0,0,0,0]
[null,null,null,"TOTAL DO ACTIVO",null,null,null,null,null,null,null,null,null,null,null,null,{"$f":"+Q30+Q44","v":0},0,0,0,0,0,0,0,0,0]
[]
[null,null,null,"CAPITAL PRÓPRIO E PASSIVO"]
[null,null,null,"CAPITAL PRÓPRIO  "]
[null,null,null,"Capital realizado"]
[null,null,null,"Acções (quotas) próprias "]
[null,null,null,"Outros instrumentos de capital próprio"]
[null,null,null,"Prémios de emissão"]
[null,null,null,"Reservas legais"]
[null,null,null,"Outras reservas"]
[null,null,null,"Resultados transitados"]
[null,null,null,"Ajustamentos em activos financeiros"]
[null,null,null,"Excedentes de revalorização"]
[null,null,null,"Outras variações no capital próprio"]
[null,null,null,"Resultado líquido do período "]
[null,null,null,"Interesses minoritários"]
[null,null,null,"Total do capital próprio",null,null,null,null,null,null,null,null,null,null,null,null,{"$f":"+Q49+Q50+Q51+Q52+Q53+Q54+Q55+Q56+Q57+Q58+Q59+Q60","v":0},{"$f":"+R49+R50+R51+R52+R53+R54+R55+R56+R57+R58+R59+R60","v":0},0,0,0,0,0,0,0,0]
[]
[null,null,null,"Passivo"]
[null,null,null,"Passivo não corrente"]
[null,null,null,"Provisões"]
[null,null,null,"Financiamentos obtidos"]
[null,null,null,"Responsabilidades por belefícios pós-emprego"]
[null,null,null,"Passivos por impostos diferidos"]
[null,null,null,"Outras contas a pagar"]
[null,null,null,null,null,null,null,null,null,null,null,null,null,null,null,null,{"$f":"++Q65+Q66+Q67+Q68+Q69","v":0},{"$f":"++R65+R66+R67+R68+R69","v":0},0,0,0,0,0,0,0,0]
[null,null,null,"Passivo corrente"]
[null,null,null,"Fornecedores"]
[null,null,null,"Adiantamento de clientes"]
[null,null,null,"Estado e outros entes públicos"]
[null,null,null,"Accionistas/sócios"]
[null,null,null,"Financiamentos obtidos"]
[null,null,null,"Outras contas a pagar"]
[null,null,null,"Diferimentos"]
[null,null,null,"Passivos financeiros detidos para negociação"]
[null,null,null,"Outros passivos financeiros"]
[null,null,null,"Passivos não correntes detidos para venda"]
[null,null,null,null,null,null,null,null,null,null,null,null,null,null,null,null,{"$f":"+Q72+Q73+Q74+Q75+Q76+Q77+Q78+Q79+Q80+Q81","v":0},{"$f":"+R72+R73+R74+R75+R76+R77+R78+R79+R80+R81","v":0},0,0,0,0,0,0,0,0]
[null,null,null,"Total do passivo",null,null,null,null,null,null,null,null,null,null,null,null,{"$f":"+Q70+Q82","v":0},0,0,0,0,0,0,0,0,0]
[null,null,null,"Total do capital próprio e do passivo",null,null,null,null,null,null,null,null,null,null,null,null,{"$f":"+Q61+Q83","v":0},0,0,0,0,0,0,0,0,0]

{"sheet":"D. Resultados do Projeto","index":12,"n_rows":50,"n_cols":26,"rows_kept":50,"cut":false,"hidden":false,"merged":[[12,2,12,26],[15,16,15,25],[16,3,16,13],[17,3,17,13],[17,14,17,15],[18,3,18,13],[19,3,19,13],[22,3,22,13],[23,3,23,13],[24,3,24,13],[34,3,34,13],[25,3,25,13],[26,3,26,13],[27,3,27,13],[28,3,28,13],[29,3,29,13],[49,3,49,13],[49,14,49,15],[43,3,43,13],[43,14,43,15],[45,3,45,13],[45,14,45,15],[46,3,46,13],[46,14,46,15],[3,2,3,17],[6,2,6,5],[10,2,10,17],[47,3,47,13],[47,14,47,15],[39,3,39,13],[40,3,40,13],[41,3,41,13],[36,3,36,13],[37,3,37,13],[38,3,38,13],[35,3,35,13],[30,3,30,13],[31,3,31,13],[32,3,32,13],[33,3,33,13]]}
[]
[null,null,"BENEFICIÁRIO:"]
[]
[null,null,{"$f":"+CAPA!C9","v":0}]
[]
[null,null,"NIF:"]
[null,null,{"$f":"+CAPA!C12","v":0}]
[]
[null,null,"SISTEMA DE INCENTIVOS:"]
[]
[null,null,{"$f":"+CAPA!C16","v":"INTERNACIONALIZAR 2020 II"}]
[]
[null,null,"DEMONSTRAÇÃO DE RESULTADOS DO PROJECTO"]
[null,null,"  "]
[]
[null,null,null,null,null,null,null,null,null,null,null,null,null,null,null,null,"Projecto"]
[null,null,null,null,null,null,null,null,null,null,null,null,null,null,"Notas",null,{"$f":"+'Balanço do Projeto'!Q18","v":1900},{"$f":"+'Balanço do Projeto'!R18","v":1901},{"$f":"+'Balanço do Projeto'!S18","v":1902},{"$f":"+'Balanço do Projeto'!T18","v":1903},{"$f":"+'Balanço do Projeto'!U18","v":1904},{"$f":"+'Balanço do Projeto'!V18","v":1905},{"$f":"+'Balanço do Projeto'!W18","v":1906},{"$f":"+'Balanço do Projeto'!X18","v":1907},{"$f":"+'Balanço do Projeto'!Y18","v":1908},{"$f":"+'Balanço do Projeto'!Z18","v":1909}]
[null,null,null,"RENDIMENTOS E GASTOS"]
[null,null,null,"Vendas e serviços prestados",null,null,null,null,null,null,null,null,null,null,null,"+"]
[null,null,null,"Subsídios à exploração",null,null,null,null,null,null,null,null,null,null,null,"+"]
[null,null,null,"Ganhos/perdas imputados de subsidiárias, associadas e empreendimentos conjuntos",null,null,null,null,null,null,null,null,null,null,null,"+/-"]
[null,null,null,"Variação nos inventários da produção",null,null,null,null,null,null,null,null,null,null,null,"+/-"]
[null,null,null,"Trabalhos para a própria entidade",null,null,null,null,null,null,null,null,null,null,null,"+"]
[null,null,null,"Custo das mercadorias vendidas e das matérias consumidas",null,null,null,null,null,null,null,null,null,null,null,"-"]
[null,null,null,"Fornecimentos e serviços externos",null,null,null,null,null,null,null,null,null,null,null,"-"]
[null,null,null,"Gastos com o pessoal",null,null,null,null,null,null,null,null,null,null,null,"-"]
[null,null,null,"Imparidade de inventários (perdas/reversões)",null,null,null,null,null,null,null,null,null,null,null,"-/+"]
[null,null,null,"Imparidade de dívidas a receber (perdas/reversões)",null,null,null,null,null,null,null,null,null,null,null,"-/+"]
[null,null,null,"Provisões (perdas/reduções)",null,null,null,null,null,null,null,null,null,null,null,"-/+"]
[null,null,null,"Imparidade de investimentos não depreciáveis/amortizações (perdas/reversões)",null,null,null,null,null,null,null,null,null,null,null,"-/+"]
[null,null,null,"Aumentos/reduções de justo valor",null,null,null,null,null,null,null,null,null,null,null,"+/-"]
[null,null,null,"Outros rendimentos e ganhos",null,null,null,null,null,null,null,null,null,null,null,"+"]
[null,null,null,"Outros gastos e perdas",null,null,null,null,null,null,null,null,null,null,null,"-"]
[null,null,null,"Resultados antes de depreciações, gastos de financiamento e impostos",null,null,null,null,null,null,null,null,null,null,null,"=",{"$f":"SUM(Q19:Q33)","v":0},{"$f":"SUM(R19:R33)","v":0},0,0,0,0,0,0,0,0]
[null,null,null,"Gastos/reversões de depreciação e de amortização",null,null,null,null,null,null,null,null,null,null,null,"-/+"]
[null,null,null,"Imparidade de investimentos depreciáveis/amorizáveis (perdas/reversões)",null,null,null,null,null,null,null,null,null,null,null,"-/+"]
[null,null,null,"Resultado operacional (antes de gastos de financiamento e impostos)",null,null,null,null,null,null,null,null,null,null,null,"=",{"$f":"+Q34+Q35+Q36","v":0},0,0,0,0,0,0,0,0,0]
[null,null,null,"Juros e rendimentos similares obtidos",null,null,null,null,null,null,null,null,null,null,null,"+"]
[null,null,null,"Juros e gastos similares suportados",null,null,null,null,null,null,null,null,null,null,null,"-"]
[null,null,null,"Resultado antes de impostos",null,null,null,null,null,null,null,null,null,null,null,"=",{"$f":"+Q37+Q38+Q39","v":0},0,0,0,0,0,0,0,0,0]
[null,null,null,"Imposto sobre o rendimento do período",null,null,null,null,null,null,null,null,null,null,null,"-/+"]
[null,null,null,"Resultado líquido do período",null,null,null,null,null,null,null,null,null,null,null,"=",{"$f":"+Q40+Q41","v":0},0,0,0,0,0,0,0,0,0]
[]
[null,null,null,"Resultado das actividades descontinuadas (líquido de impostos) incluido no resultado líquido do período"]
[]
[null,null,null,"Resultado líquido do período atribuível a: (2)"]
[null,null,null,"Detentores do capital da empresa-mãe"]
[null,null,null,"Interesses minoritários"]
[null,null,null,null,null,null,null,null,null,null,null,null,null,null,null,"=",{"$f":"+Q47+Q48","v":0},0,0,0,0,0,0,0,0,0]
[null,null,null,"Resultado por acção básico"]

{"sheet":"Folha2","index":13,"n_rows":8,"n_cols":3,"rows_kept":8,"cut":false,"hidden":true,"merged":[]}
[]
[]
[null,null,"Sistemas de Incentivos"]
[null,null,"----- Escolha -----"]
[null,null,"INOVAR 2020"]
[null,null,"EMPREENDER 2020"]
[null,null,"INTERNACIONALIZAR 2020"]
[null,null,"PROCiência 2020"]